bitfinex/quotes_ETHUSD_20220219
["timestamp","ask_amount","ask_price","bid_price","bid_amount"]
[1645308502566,3.07220279,2744.8,2743.8,3.44894706]
[1645308502866,3.07220279,2744.8,2743.9,1.5486644]
[1645308503068,3.07220279,2744.8,2744.0,1.5486644]
[1645308503269,3.07220279,2744.8,2744.1,1.5486644]
[1645308503468,3.07220279,2744.8,2743.7,1.5486644]
[1645308503769,3.07220279,2744.8,2744.2,1.5486644]
[1645308503968,6.57220279,2744.8,2743.6,1.2358]
[1645308504177,0.00088463,2744.2,2743.7,1.54877868]
[1645308504372,0.91185,2744.1,2743.3,2.8833312]
[1645308504633,0.3,2744.0,2743.4,1.54895945]
[1645308504826,0.3,2744.0,2743.3,1.6524312]
[1645308504827,0.4792,2744.0,2743.3,1.6524312]
[1645308505024,0.522,2743.9,2743.3,1.6524312]
[1645308505224,1.734,2743.9,2743.3,1.6524312]
[1645308505423,5.4704965,2743.9,2743.3,1.6524312]
[1645308505622,2.7367,2743.8,2743.3,1.6524312]
[1645308505824,2.12444,2743.7,2743.3,1.6524312]
[1645308506027,0.91222,2743.6,2743.3,1.6524312]
[1645308506222,0.9122,2743.5,2743.3,1.6524312]
[1645308507424,0.9122,2743.5,2743.4,1.54913982]
[1645308509064,0.9122,2743.5,2743.4,1.5476313]
[1645308509465,2.73666,2743.7,2743.5,0.74012347]
[1645308509665,5.4731419,2743.7,2743.5,0.74012347]
[1645308510665,0.91214,2743.6,2743.5,0.74012347]
[1645308517469,4.41214,2743.6,2743.5,0.74012347]
[1645308517670,1.43414,2743.6,2743.5,0.74012347]
[1645308517867,3.25814,2743.6,2743.5,0.74012347]
[1645308523121,3.55814,2743.6,2743.5,0.74012347]
[1645308524165,3.64425616,2743.6,2743.5,0.74012347]
[1645308529820,3.55814,2743.6,2743.5,0.74012347]
[1645308530019,3.55814,2743.6,2743.5,0.7388763]
[1645308531065,3.55694415,2743.6,2743.5,0.7388763]
[1645308531964,3.25814,2743.6,2743.5,0.7388763]
[1645308533064,3.55814,2743.6,2743.5,0.7388763]
[1645308534066,3.25814,2743.6,2743.5,0.7388763]
[1645308534266,2.73614,2743.6,2743.5,0.7388763]
[1645308534513,0.91222,2743.7,2743.5,0.7388763]
[1645308539566,0.91204,2743.6,2743.5,0.7388763]
[1645308540570,1.73404,2743.6,2743.5,0.7388763]
[1645308540770,2.03404,2743.6,2743.5,0.7388763]
[1645308541279,3.03404,2743.6,2743.5,0.7388763]
[1645308541868,4.85804,2743.6,2743.5,0.7388763]
[1645308542325,5.81066785,2743.6,2743.5,0.7388763]
[1645308543627,5.89678401,2743.6,2743.5,0.7388763]
[1645308545429,5.81066785,2743.6,2743.5,0.7388763]
[1645308551223,5.81066785,2743.6,2743.5,0.73795378]
[1645308569168,8.57417647,2743.6,2743.5,0.48549752]
[1645308569372,11.511,2743.5,2742.8,0.00344338]
[1645308569570,11.511,2743.5,2742.6,3.5]
[1645308569571,2.7366,2743.3,2743.0,0.00305071]
[1645308569773,5.0,2743.1,2742.7,0.00344338]
[1645308569968,2.3471329,2743.0,2742.8,0.00344338]
[1645308570178,1.824,2742.9,2742.4,1.55313758]
[1645308570368,2.346,2742.8,2742.4,1.55313758]
[1645308570571,7.20894,2742.8,2742.4,1.55313758]
[1645308570972,7.20894,2742.8,2742.5,1.5496942]
[1645308571168,7.20894,2742.8,2742.6,1.5496942]
[1645308571370,9.0341,2742.8,2742.1,0.00344338]
[1645308571573,1.8252386,2742.5,2742.1,1.55316157]
[1645308571770,1.8252386,2742.5,2742.2,0.00344338]
[1645308571771,2.73794,2742.4,2742.2,0.00344338]
[1645308572022,1.82529,2742.4,2742.3,0.00114451]
[1645308572427,1.82529,2742.4,2742.3,1.5508627]
[1645308572825,1.82529,2742.4,2742.3,1.54971819]
[1645308573025,1.82529,2742.4,2742.2,0.00458793]
[1645308573226,1.82529,2742.4,2742.3,1.54971819]
[1645308573425,1.82529,2742.4,2742.2,0.00114455]
[1645308573627,1.82529,2742.4,2742.2,1.55086274]
[1645308574025,1.82529,2742.4,2742.2,1.54971819]
[1645308574226,1.82529,2742.4,2742.1,1.55316157]
[1645308574427,1.82529,2742.4,2742.2,0.00306501]
[1645308574628,3.650535,2742.4,2742.2,0.00306501]
[1645308574828,2.737905,2742.4,2742.3,1.54971819]
[1645308575035,2.737905,2742.4,2742.2,1.55622658]
[1645308575226,2.737905,2742.4,2742.3,1.54971819]
[1645308576269,3.650535,2742.4,2742.2,0.00318105]
[1645308576475,3.650535,2742.4,2742.1,1.55316157]
[1645308576669,3.650535,2742.4,2742.2,1.55289924]
[1645308577673,3.650535,2742.4,2742.2,1.54971819]
[1645308577870,3.650535,2742.4,2742.3,1.54971819]
[1645308578071,2.737905,2742.4,2742.2,1.55634265]
[1645308578270,3.037905,2742.4,2742.3,1.54971819]
[1645308578870,3.037905,2742.4,2742.1,1.54971819]
[1645308579071,3.037905,2742.4,2742.2,1.55276355]
[1645308580119,3.037905,2742.4,2742.2,1.54971819]
[1645308580325,3.037905,2742.4,2742.2,0.00304538]
[1645308580519,3.037905,2742.4,2742.2,1.55285369]
[1645308580923,0.91264,2742.3,2742.2,1.55285369]
[1645308581122,0.91264,2742.3,2742.2,0.00304538]
[1645308581322,0.91264,2742.3,2742.0,0.00344338]
[1645308581521,0.91264,2742.3,2742.1,0.0030454]
[1645308581722,0.91264,2742.3,2742.1,1.55285371]
[1645308581922,0.91264,2742.3,2742.2,1.54980831]
[1645308582122,2.73664,2742.3,2742.2,1.54980831]
[1645308582722,2.73664,2742.3,2742.1,0.00305456]
[1645308583572,2.73664,2742.3,2742.1,1.54980831]
[1645308583970,2.73664,2742.3,2742.2,1.54980831]
[1645308584769,2.73664,2742.3,2741.9,1.54980831]
[1645308584967,2.73664,2742.3,2742.0,1.54980831]
[1645308585167,2.73664,2742.3,2742.1,1.55286287]
[1645308585673,2.73664,2742.3,2742.2,1.54980831]
[1645308585868,2.73664,2742.3,2742.1,0.00649794]
[1645308586071,2.73664,2742.3,2742.2,1.54980831]
[1645308586267,2.73664,2742.3,2742.1,0.00305394]
[1645308587322,2.73664,2742.3,2742.0,1.55325169]
[1645308587520,2.73664,2742.3,2742.1,1.55286227]
[1645308588020,2.73664,2742.3,2742.2,1.54980831]
[1645308588620,2.73664,2742.3,2742.1,0.00305394]
[1645308589422,2.73664,2742.3,2742.1,1.55286225]
[1645308589622,2.731666,2742.3,2742.1,1.54980831]
[1645308589821,2.731666,2742.3,2742.2,1.54980831]
[1645308590422,2.731666,2742.3,2742.1,0.00305401]
[1645308590874,2.731666,2742.3,2742.1,1.54980831]
[1645308591070,2.731666,2742.3,2742.2,1.54980831]
[1645308591570,2.731666,2742.3,2742.1,0.00113581]
[1645308591972,2.731666,2742.3,2742.1,1.54983998]
[1645308592171,2.731666,2742.3,2741.8,0.00344338]
[1645308592172,0.91266,2742.1,2741.8,0.00344338]
[1645308592372,0.91266,2742.0,2741.8,1.55329061]
[1645308592570,3.65063,2742.1,2742.0,0.74051309]
[1645308592972,3.65063,2742.1,2742.0,2.29036032]
[1645308600275,3.95063,2742.1,2742.0,2.29036032]
[1645308601179,3.95063,2742.1,2742.0,0.74051309]
[1645308601376,3.95063,2742.1,2742.0,2.29044951]
[1645308603020,4.47263,2742.1,2742.0,2.29044951]
[1645308604926,5.77263,2742.1,2742.0,2.29044951]
[1645308605125,1.824,2742.0,2741.9,0.00306827]
[1645308605325,0.9128915,2741.9,2741.5,0.00344338]
[1645308605526,1.43486,2741.8,2741.5,0.01571831]
[1645308605784,1.73486,2741.8,2741.5,0.01227493]
[1645308606392,1.824,2741.7,2741.5,0.01227493]
[1645308606584,0.91293,2741.5,2741.2,0.00344338]
[1645308606789,3.65172,2741.5,2741.2,0.00344338]
[1645308607986,3.65172,2741.5,2741.2,0.00112992]
[1645308608790,5.47572,2741.5,2740.9,0.00344338]
[1645308609192,0.9129707,2741.4,2741.2,0.00112992]
[1645308609826,1.8258907,2741.4,2741.2,0.00112992]
[1645308610026,1.8258907,2741.4,2741.2,3.60344338]
[1645308610427,1.8258907,2741.4,2741.2,3.60457332]
[1645308610630,1.8258907,2741.4,2741.2,3.10457332]
[1645308611227,1.8258907,2741.4,2741.2,3.10344338]
[1645308611632,1.8258907,2741.4,2741.2,3.10658031]
[1645308612429,1.8258907,2741.4,2741.2,3.10344338]
[1645308612633,0.17231258,2741.4,2741.2,2.85344338]
[1645308612829,0.17231258,2741.4,2741.2,2.85658031]
[1645308613671,0.17231258,2741.4,2741.2,2.85344338]
[1645308613873,0.17231258,2741.4,2741.2,2.85658031]
[1645308614072,1.08528328,2741.4,2741.2,2.85658031]
[1645308614873,1.08528328,2741.4,2741.2,2.85344338]
[1645308615070,1.08528328,2741.4,2741.2,2.85651045]
[1645308616071,1.08528328,2741.4,2741.2,2.85344338]
[1645308616273,1.08528328,2741.4,2741.2,2.85651045]
[1645308616274,0.6,2741.3,2741.2,2.85651045]
[1645308616878,1.122,2741.3,2741.2,2.85651045]
[1645308617325,1.122,2741.3,2741.2,2.85344338]
[1645308618328,2.946,2741.3,2741.2,2.85344338]
[1645308618729,3.946,2741.3,2741.2,2.85344338]
[1645308629174,4.154,2741.3,2741.2,2.85344338]
[1645308629375,4.154,2741.3,2741.2,2.78600383]
[1645308629580,4.154,2741.3,2741.2,2.73093677]
[1645308632329,4.154,2741.3,2741.2,2.58430412]
[1645308632522,4.154,2741.3,2741.2,2.31253613]
[1645308632726,3.946,2741.3,2741.2,2.31253613]
[1645308633522,4.89949189,2741.3,2741.2,2.31253613]
[1645308634632,4.89949189,2741.3,2741.2,2.30253613]
[1645308638577,4.89949189,2741.3,2741.2,2.25253613]
[1645308641629,4.89949189,2741.3,2740.7,0.01231066]
[1645308641630,0.91307,2741.0,2740.7,0.01231066]
[1645308641830,0.91307,2741.0,2740.4,0.00911991]
[1645308641831,4.1725309,2740.9,2740.4,0.00911991]
[1645308642031,7.45372743,2740.9,2740.4,0.00911991]
[1645308642229,7.45372743,2740.9,2740.5,0.04035806]
[1645308642530,1.824,2740.6,2740.0,1.2246]
[1645308642727,2.346,2740.5,2740.3,1.55086608]
[1645308642928,2.346,2740.5,2739.6,0.58711178]
[1645308642929,3.65372,2740.4,2739.6,0.58711178]
[1645308643132,3.95372,2740.4,2740.3,1.55085333]
[1645308643392,6.0,2740.3,2739.3,0.69295843]
[1645308643590,3.522,2740.2,2739.2,1.88095843]
[1645308643791,3.822,2740.2,2739.2,1.188]
[1645308643990,3.822,2740.2,2739.2,1.83659316]
[1645308644188,3.822,2740.2,2739.2,1.14363473]
[1645308644189,1.82688,2740.1,2739.2,1.14363473]
[1645308644388,1.82688,2740.1,2739.3,0.54405128]
[1645308644389,1.8269077,2739.8,2739.3,0.54405128]
[1645308644589,0.69446423,2739.8,2739.3,0.54405128]
[1645308645390,1.82694,2739.7,2739.3,0.54405128]
[1645308647028,1.82694,2739.7,2739.3,0.49405128]
[1645308647828,1.82694,2739.7,2739.2,0.00328665]
[1645308648631,2.74074,2739.5,2738.8,0.69295843]
[1645308648832,2.74074,2739.5,2739.2,0.00328661]
[1645308649236,3.26274,2739.5,2739.2,0.00328661]
[1645308649730,1.43558,2739.5,2738.9,0.69295843]
[1645308649929,1.43558,2739.5,2739.2,0.00328654]
[1645308650331,0.7042,2739.8,2739.3,0.70494966]
[1645308650890,0.1824,2739.7,2739.3,0.70494966]
[1645308652289,2.53113,2739.8,2739.3,0.70494966]
[1645308652488,3.4446,2739.8,2739.3,0.70494966]
[1645308654729,3.2622,2739.8,2739.3,0.70494966]
[1645308655732,3.2622,2739.8,2738.9,3.6]
[1645308655929,2.34873,2739.8,2738.9,3.6]
[1645308656132,2.34873,2739.8,2739.2,0.00328669]
[1645308657030,2.34873,2739.8,2738.9,4.29295843]
[1645308657231,2.34873,2739.8,2739.2,0.00328665]
[1645308657432,2.34873,2739.8,2739.5,0.66711379]
[1645308659087,2.34873,2739.8,2739.2,0.00328676]
[1645308659284,2.34873,2739.8,2738.8,0.69295843]
[1645308659285,1.43535,2739.8,2738.8,0.69295843]
[1645308659484,1.82696,2739.5,2738.8,0.69295843]
[1645308659685,1.82696,2739.5,2739.2,0.00328676]
[1645308660087,1.82696,2739.5,2739.2,0.52858551]
[1645308660687,1.82696,2739.5,2739.2,0.52858529]
[1645308661687,1.82696,2739.5,2739.2,0.52529875]
[1645308662132,1.82696,2739.5,2739.2,0.52858529]
[1645308662932,1.82696,2739.5,2739.2,0.52529875]
[1645308663135,1.82696,2739.5,2739.2,0.52858529]
[1645308663334,0.91348,2739.5,2739.3,1.55119265]
[1645308663935,1.86741862,2739.5,2739.3,1.55119265]
[1645308664533,0.21274792,2739.5,2739.3,1.55119265]
[1645308664935,1.82696,2739.7,2739.3,1.55119265]
[1645308665337,0.9135,2739.5,2739.3,1.55119265]
[1645308665785,1.82698,2739.5,2739.3,1.55119265]
[1645308667994,1.82698,2739.5,2739.2,4.12858533]
[1645308668995,1.82698,2739.5,2739.2,4.12529875]
[1645308669194,1.82698,2739.5,2739.2,4.12858529]
[1645308669642,1.77698,2739.5,2739.2,4.12858529]
[1645308670240,1.77698,2739.5,2739.2,4.12529875]
[1645308670440,1.77698,2739.5,2739.2,4.12858529]
[1645308672546,1.77698,2739.5,2739.3,3.5]
[1645308672747,2.78089093,2739.7,2739.3,3.5]
[1645308672748,3.69426093,2739.7,2739.3,3.5034313]
[1645308673047,3.69426093,2739.7,2739.3,0.0034313]
[1645308674194,1.82701,2739.6,2739.3,0.0034313]
[1645308674392,3.65409,2739.6,2739.3,0.0034313]
[1645308674991,3.65409,2739.6,2739.3,0.68413668]
[1645308675294,6.84051,2739.6,2739.2,2.86993282]
[1645308675495,2.43553,2739.5,2739.2,2.86993282]
[1645308675692,7.5,2739.4,2738.7,0.01314875]
[1645308675895,1.522,2739.3,2738.7,0.01314875]
[1645308676091,1.522,2739.3,2738.4,1.2034]
[1645308676293,1.522,2739.3,2738.4,1.81858389]
[1645308676492,2.435807,2739.3,2738.4,1.81858389]
[1645308676692,7.677237,2739.3,2738.4,1.2034]
[1645308676890,3.65143,2739.1,2738.4,1.2034]
[1645308677141,2.346,2739.0,2738.2,3.2036]
[1645308677337,2.346,2739.0,2738.1,2.482312]
[1645308677542,0.91372,2739.0,2738.1,0.534512]
[1645308677738,0.91372,2739.0,2738.7,0.60801007]
[1645308680038,0.91372,2739.0,2738.7,0.61129459]
[1645308680239,0.91372,2739.0,2738.7,0.00328452]
[1645308680883,0.91372,2739.0,2738.1,1.2482]
[1645308681082,2.73772,2739.0,2738.1,1.2482]
[1645308681287,2.73772,2739.0,2738.7,0.00328452]
[1645308682084,2.73772,2739.0,2738.5,0.51662889]
[1645308682483,2.73772,2739.0,2738.7,0.00328452]
[1645308683284,2.73772,2739.0,2738.1,1.2482]
[1645308683685,2.73772,2739.0,2738.7,0.00328452]
[1645308684531,2.73772,2739.0,2738.4,0.68745945]
[1645308684736,2.73772,2739.0,2738.7,0.00328452]
[1645308684942,0.3,2738.9,2738.7,0.00328452]
[1645308685135,2.34991,2738.8,2738.7,0.00328452]
[1645308685335,3.83231,2738.8,2738.7,0.00328452]
[1645308685532,3.64991,2738.8,2738.7,0.00328452]
[1645308685732,3.64991,2738.8,2738.4,3.6]
[1645308685935,1.82796,2738.7,2738.4,3.6]
[1645308686234,0.91397,2738.5,2738.4,3.6]
[1645308686834,2.73797,2738.5,2738.4,3.6]
[1645308695538,3.69230536,2738.5,2738.4,3.6]
[1645308695782,2.73797,2738.5,2738.4,3.6]
[1645308696386,2.73797,2738.5,2738.4,3.59893634]
[1645308703579,2.48797,2738.5,2738.4,3.49893634]
[1645308705779,3.44231317,2738.5,2738.4,3.49893634]
[1645308711183,3.44231317,2738.5,2738.4,4.11976899]
[1645308711184,0.95434317,2738.5,2738.4,4.11976899]
[1645308711388,1.824,2739.0,2738.5,1.65525236]
[1645308712382,1.824,2739.0,2738.6,0.0032822]
[1645308712684,1.824,2739.0,2738.9,1.5]
[1645308712685,2.73763,2739.0,2738.9,1.5]
[1645308712884,2.68763,2739.0,2738.9,1.5]
[1645308717341,2.98763,2739.0,2738.9,1.5]
[1645308718592,2.68763,2739.0,2738.9,1.5]
[1645308720193,2.68763,2739.0,2738.9,3.05173873]
[1645308720392,2.68763,2739.0,2738.9,1.5]
[1645308720792,2.68763,2739.0,2738.9,3.05173538]
[1645308721096,2.68763,2739.0,2738.9,1.5]
[1645308721689,2.68763,2739.0,2738.9,3.05172394]
[1645308722739,2.68763,2739.0,2738.9,1.5]
[1645308723341,2.68763,2739.0,2738.9,3.05172702]
[1645308723538,2.68763,2739.0,2738.9,1.5]
[1645308724541,2.68763,2739.0,2738.9,3.05175803]
[1645308725882,3.64178874,2739.0,2738.9,3.05175803]
[1645308726481,3.64178874,2739.0,2738.9,1.5]
[1645308727483,3.64178874,2739.0,2738.9,3.05176635]
[1645308730934,3.59178874,2739.0,2738.9,3.05176635]
[1645308733036,3.59178874,2739.0,2738.9,3.05177368]
[1645308735292,3.59178874,2739.0,2738.9,3.05175802]
[1645308737532,3.59178874,2739.0,2738.9,1.5]
[1645308738732,3.59178874,2739.0,2738.9,3.05172528]
[1645308739135,3.89178874,2739.0,2738.9,1.5]
[1645308739733,3.59178874,2739.0,2738.9,1.5]
[1645308739934,3.59178874,2739.0,2738.9,3.05173235]
[1645308740341,3.59178874,2739.0,2738.9,1.5]
[1645308740784,3.89178874,2739.0,2738.9,1.5]
[1645308741184,3.59178874,2739.0,2738.9,1.5]
[1645308741384,3.59178874,2739.0,2738.9,3.05172667]
[1645308741590,3.59178874,2739.0,2738.9,1.5]
[1645308742186,3.59178874,2739.0,2738.9,3.05172629]
[1645308742187,3.89178874,2739.0,2738.9,3.05172629]
[1645308742988,3.89178874,2739.0,2738.9,1.5]
[1645308744841,3.59178874,2739.0,2738.9,1.5]
[1645308745243,3.59178874,2739.0,2738.9,3.05174523]
[1645308745555,3.59178874,2739.0,2738.9,3.05180819]
[1645308745740,3.59178874,2739.0,2738.9,1.5]
[1645308746141,4.41378874,2739.0,2738.9,1.5]
[1645308747148,4.41378874,2739.0,2738.9,3.05182286]
[1645308748384,4.11378874,2739.0,2738.9,3.05182286]
[1645308749791,4.41378874,2739.0,2738.9,3.05182286]
[1645308750185,4.11378874,2739.0,2738.9,3.05182286]
[1645308751390,5.41378874,2739.0,2738.9,3.05182286]
[1645308751589,5.41378874,2739.0,2738.9,1.5]
[1645308751789,4.41378874,2739.0,2738.9,1.5]
[1645308753444,4.41378874,2739.0,2738.9,3.05187148]
[1645308753647,4.41378874,2739.0,2738.9,1.5]
[1645308753849,4.11378874,2739.0,2738.9,3.05069562]
[1645308757389,4.41378874,2739.0,2738.9,3.05069562]
[1645308757789,5.41378874,2739.0,2738.9,3.05069562]
[1645308758288,5.41378874,2739.0,2738.9,1.49882414]
[1645308758691,8.91378874,2739.0,2738.9,1.49882414]
[1645308758889,5.41378874,2739.0,2738.9,1.49882414]
[1645308759091,8.91378874,2739.0,2738.9,1.49882414]
[1645308759289,8.91378874,2739.0,2738.8,0.00328261]
[1645308759290,11.40188,2738.9,2738.8,0.00328261]
[1645308759537,16.72388,2738.9,2738.8,0.00328261]
[1645308759738,1.774,2738.7,2738.5,1.65525236]
[1645308759940,5.33796,2738.7,2738.5,1.65525236]
[1645308760144,1.774,2738.6,2738.5,1.65525236]
[1645308760338,3.41092855,2738.6,2738.5,3.20732487]
[1645308761342,3.41092855,2738.6,2738.5,1.65525236]
[1645308762539,2.41092855,2738.6,2738.5,1.65525236]
[1645308762744,5.27397588,2738.6,2738.5,1.65525236]
[1645308763788,6.27397588,2738.6,2738.5,1.65525236]
[1645308764191,4.63704733,2738.6,2738.5,1.65525236]
[1645308764489,5.63704733,2738.6,2738.5,3.20726632]
[1645308764788,5.63704733,2738.6,2738.5,1.65525236]
[1645308767638,6.15904733,2738.6,2738.5,1.65525236]
[1645308769042,6.15904733,2738.6,2738.5,3.20726018]
[1645308769242,0.522,2738.6,2738.5,3.20725588]
[1645308769442,1.8682818,2738.7,2738.5,3.20725588]
[1645308769443,0.9543618,2738.7,2738.5,3.20725588]
[1645308769641,0.91363,2738.9,2738.6,1.55200352]
[1645308771294,1.51363,2738.9,2738.6,1.55528622]
[1645308771495,2.42729,2738.9,2738.6,1.55528622]
[1645308772395,2.42729,2738.9,2738.6,1.55200352]
[1645308772396,0.91363,2738.9,2738.6,1.55200352]
[1645308772595,0.95420273,2739.1,2738.6,1.55528622]
[1645308772797,1.25420273,2739.1,2738.6,1.55528622]
[1645308773200,2.16776273,2739.1,2738.6,1.55528622]
[1645308773596,2.16776273,2739.1,2738.6,1.55200352]
[1645308773798,2.16776273,2739.1,2738.7,0.00328271]
[1645308774644,2.16776273,2739.1,2738.6,1.55200352]
[1645308775043,2.16776273,2739.1,2738.7,0.00328275]
[1645308775240,1.86776273,2739.1,2738.7,0.00328275]
[1645308775845,1.86776273,2739.1,2738.6,1.55200352]
[1645308776244,1.86776273,2739.1,2738.7,0.00328275]
[1645308777140,1.86776273,2739.1,2738.6,1.55200352]
[1645308777440,1.86776273,2739.1,2738.7,0.00328275]
[1645308778286,1.86776273,2739.1,2738.6,1.55200352]
[1645308778491,1.86776273,2739.1,2738.7,0.00328275]
[1645308778886,1.86776273,2739.1,2738.6,1.50528627]
[1645308779493,2.73757,2739.4,2738.6,1.50528627]
[1645308779494,0.91349,2739.4,2738.7,3.36383374]
[1645308779690,3.65392,2739.7,2739.1,1.65497627]
[1645308780995,0.00198245,2739.5,2739.1,1.65497627]
[1645308782038,1.824,2739.8,2739.1,1.65497627]
[1645308782537,0.00328211,2739.4,2739.1,1.65497627]
[1645308783138,2.73734,2739.8,2739.1,1.65497627]
[1645308783338,0.00328214,2739.4,2739.1,5.01794652]
[1645308783545,0.00328214,2739.4,2739.1,5.01794682]
[1645308784341,0.91326,2740.2,2739.1,10.01794682]
[1645308784540,0.00328214,2739.4,2739.1,5.01794682]
[1645308785541,1.82648,2740.4,2739.1,5.71090525]
[1645308785791,0.00328214,2739.4,2739.1,5.71090525]
[1645308786290,0.00328214,2739.4,2739.1,5.01794682]
[1645308786696,2.73963,2740.4,2739.2,0.69364742]
[1645308786990,2.73963,2740.4,2740.1,0.50849881]
[1645308786991,0.9132,2740.3,2740.1,0.50849881]
[1645308787191,0.9132,2740.3,2739.4,1.1313]
[1645308787391,0.5,2740.6,2739.4,1.1313]
[1645308787591,4.1723,2740.7,2739.5,3.35907978]
[1645308787791,4.1723,2740.7,2739.4,1.1313]
[1645308787792,0.9131,2740.5,2739.4,1.1313]
[1645308788192,0.00328173,2740.2,2739.4,1.1313]
[1645308788992,0.00328173,2740.2,2739.8,0.68060133]
[1645308789291,0.00328188,2739.9,2739.8,0.68060133]
[1645308790244,0.91319,2740.2,2739.8,0.68060133]
[1645308790446,0.9132,2740.3,2739.8,0.68060133]
[1645308790643,0.00328185,2740.0,2739.8,0.68060133]
[1645308791543,1.82632,2740.6,2739.8,0.68060133]
[1645308791744,0.00328183,2740.0,2739.8,0.68060133]
[1645308792445,0.00328183,2740.0,2739.9,3.5]
[1645308792744,0.91306,2740.6,2739.9,3.5]
[1645308792944,0.91306,2740.6,2740.3,0.53905415]
[1645308793144,0.91306,2740.6,2739.6,3.5]
[1645308794195,0.00328173,2740.2,2739.6,3.5]
[1645308794394,0.00328173,2740.2,2740.0,0.52929871]
[1645308795196,0.91306,2740.6,2740.0,0.52929871]
[1645308795396,0.00328173,2740.2,2740.0,0.52929871]
[1645308796302,0.91306,2740.6,2740.0,0.52929871]
[1645308796497,0.00328173,2740.2,2740.0,0.52929871]
[1645308798647,0.91306,2740.6,2740.0,0.52929871]
[1645308799050,0.00328173,2740.2,2740.0,0.52929871]
[1645308799950,1.09538,2740.9,2740.0,0.52929871]
[1645308800149,0.00328173,2740.2,2740.0,0.52929871]
[1645308800551,1.09538,2740.9,2740.2,3.50656346]
[1645308800552,0.1824,2740.9,2740.2,3.50656346]
[1645308800792,0.1824,2741.0,2740.2,0.00656346]
[1645308800991,0.822,2741.3,2740.2,0.00656346]
[1645308801191,0.522,2741.3,2740.2,0.00656346]
[1645308801593,0.91289,2741.2,2740.2,0.00656346]
[1645308801791,1.82579,2741.2,2740.2,0.00656346]
[1645308803694,0.00198245,2740.8,2740.2,0.00656346]
[1645308804648,1.82579,2741.2,2740.2,0.00656346]
[1645308805044,0.00328154,2740.6,2740.2,0.00656346]
[1645308805845,0.91296,2741.0,2740.2,0.00656346]
[1645308806247,0.00328159,2740.5,2740.2,0.00656346]
[1645308807149,0.91296,2741.0,2740.2,0.00656346]
[1645308807350,0.00328161,2740.5,2740.2,0.00656346]
[1645308807949,0.00328161,2740.5,2740.2,3.48280497]
[1645308808151,0.00328161,2740.5,2740.2,0.00656346]
[1645308808395,0.1824,2741.4,2740.2,0.00656346]
[1645308808595,0.00328161,2740.5,2740.3,5.0]
[1645308808798,0.00328161,2740.5,2740.4,15.83667417]
[1645308808996,0.00328161,2740.5,2740.4,6.25724014]
[1645308809695,4.59504,2742.0,2740.4,6.25724014]
[1645308809895,4.59504,2742.0,2740.5,1.55056577]
[1645308809896,1.09504,2742.0,2740.5,1.55056577]
[1645308810095,1.39504,2742.0,2740.6,3.47781262]
[1645308810297,0.91267,2741.9,2740.4,4.70646505]
[1645308810495,0.1824,2741.8,2740.5,1.55053024]
[1645308810896,0.1824,2741.8,2740.6,3.48269119]
[1645308811296,0.1824,2741.8,2741.2,0.65745336]
[1645308811699,0.9127,2741.7,2741.2,0.65745336]
[1645308811895,0.9127,2741.7,2740.7,1.1966]
[1645308812143,0.0032782,2741.6,2740.7,1.1966]
[1645308812341,0.91277,2741.5,2740.7,1.1966]
[1645308812743,0.0032782,2741.6,2740.7,1.1966]
[1645308813042,0.9127,2741.7,2741.1,0.57189093]
[1645308813443,0.00327837,2741.3,2741.1,0.57189093]
[1645308814250,0.9127,2741.7,2741.1,0.57189093]
[1645308814646,0.00327834,2741.3,2741.1,0.57189093]
[1645308815448,0.9127,2741.7,2741.1,0.57189093]
[1645308815894,0.00327834,2741.3,2741.1,0.57189093]
[1645308816800,0.9127,2741.7,2741.1,0.57189093]
[1645308816997,0.00327834,2741.3,2741.1,0.57189093]
[1645308818000,0.1824,2741.8,2741.1,0.57189093]
[1645308818197,0.00327834,2741.3,2741.1,0.57189093]
[1645308818400,0.1824,2741.8,2741.1,0.57189093]
[1645308818401,0.13567834,2741.8,2741.1,0.57189093]
[1645308819198,3.02707,2741.9,2741.1,0.57189093]
[1645308820246,0.91272,2741.8,2741.1,0.57189093]
[1645308820648,0.0032782,2741.6,2741.1,0.57189093]
[1645308821450,0.1822,2741.8,2741.1,0.57189093]
[1645308821851,0.00327827,2741.5,2741.1,0.57189093]
[1645308822250,1.824,2742.2,2741.5,0.00655653]
[1645308822649,0.1822,2742.4,2741.5,0.00655653]
[1645308823495,0.1822,2742.4,2741.5,3.60655653]
[1645308823695,1.09466,2742.4,2741.5,3.60655653]
[1645308824094,1.09466,2742.4,2742.0,0.57599705]
[1645308825394,0.00327787,2742.3,2742.0,0.57599705]
[1645308826392,1.09466,2742.4,2742.0,0.57599705]
[1645308826597,0.00327789,2742.3,2742.0,0.57599705]
[1645308827445,0.91246,2742.4,2742.0,0.57599705]
[1645308827646,1.2105,2742.6,2742.0,0.57599705]
[1645308827845,0.00327789,2742.3,2742.1,3.5]
[1645308828045,0.00327789,2742.3,2742.0,0.57599705]
[1645308828245,0.00327789,2742.3,2742.1,3.5]
[1645308828548,0.00327789,2742.3,2742.0,0.57599705]
[1645308828749,1.2105,2742.6,2742.1,3.5]
[1645308829350,3.0618,2742.7,2742.1,3.5]
[1645308829646,0.18869713,2742.9,2742.1,3.5]
[1645308829647,1.15839713,2742.9,2742.1,3.5]
[1645308829849,1.15839713,2742.9,2742.2,1.54992628]
[1645308830045,1.15839713,2742.9,2742.3,3.5]
[1645308830350,0.00327486,2742.6,2742.3,3.5]
[1645308830543,0.00327486,2742.6,2742.1,3.5]
[1645308831196,1.15839713,2742.9,2742.1,3.5]
[1645308831403,0.00327493,2742.5,2742.2,1.54989539]
[1645308831593,0.00327493,2742.5,2742.3,3.5]
[1645308831793,0.00327493,2742.5,2742.1,3.5]
[1645308831994,0.00327493,2742.5,2742.2,1.54990245]
[1645308832197,0.00327493,2742.5,2742.3,3.5]
[1645308832399,1.15839713,2742.9,2742.3,3.5]
[1645308832695,0.00327493,2742.5,2742.1,3.5]
[1645308832895,0.00327493,2742.5,2742.2,1.54990761]
[1645308833101,0.00327493,2742.5,2742.3,3.5]
[1645308833494,1.15839713,2742.9,2742.1,3.5]
[1645308833895,0.00327491,2742.5,2742.1,3.5]
[1645308834545,0.00327491,2742.5,2742.0,4.17599705]
[1645308834748,2.07068713,2742.9,2742.0,7.67599705]
[1645308834952,0.00327495,2742.4,2742.0,7.67599705]